[Event "Titled Tuesday Blitz August 16 Late 2022"]
[White "Al Hosani, Omran"]
[Black "Martinez Reyes, Pedro Ramon"]
[WhiteFideId "9308733"]
[BlackFideId "3901807"]
[WhiteElo "2236"]
[BlackElo "2327"]
[Result "0-1"]
[Round "03"]
[TimeControl "180+1"]
[Date "2022.08.18"]
[WhiteClock "0:00:00"]
[BlackClock "0:00:00"]

1. d4 {[%clk 0:00:00]}  Nf6 {[%clk 0:00:00]} 2. Bf4 {[%clk 0:00:00]}  d6 {[%clk 0:00:00]} 3. Nf3 {[%clk 0:00:00]}  Nbd7 {[%clk 0:00:00]} 4. e3 {[%clk 0:00:00]}  Nh5 {[%clk 0:00:00]} 5. Bg5 {[%clk 0:00:00]}  h6 {[%clk 0:00:00]} 6. Bh4 {[%clk 0:00:00]}  g5 {[%clk 0:00:00]} 7. Nfd2 {[%clk 0:00:00]}  Ng7 {[%clk 0:00:00]} 8. Bg3 {[%clk 0:00:00]}  Nf5 {[%clk 0:00:00]} 9. Bd3 {[%clk 0:00:00]}  Nxg3 {[%clk 0:00:00]} 10. hxg3 {[%clk 0:00:00]}  Bg7 {[%clk 0:00:00]} 11. Nc3 {[%clk 0:00:00]}  c5 {[%clk 0:00:00]} 12. Ne2 {[%clk 0:00:00]}  b6 {[%clk 0:00:00]} 13. c3 {[%clk 0:00:00]}  Bb7 {[%clk 0:00:00]} 14. g4 {[%clk 0:00:00]}  Bxg2 {[%clk 0:00:00]} 15. Rh2 {[%clk 0:00:00]}  Bb7 {[%clk 0:00:00]} 16. Ng3 {[%clk 0:00:00]}  e6 {[%clk 0:00:00]} 17. Nh5 {[%clk 0:00:00]}  Bf8 {[%clk 0:00:00]} 18. Qe2 {[%clk 0:00:00]}  Qc7 {[%clk 0:00:00]} 19. a4 {[%clk 0:00:00]}  O-O-O {[%clk 0:00:00]} 20. a5 {[%clk 0:00:00]}  Kb8 {[%clk 0:00:00]} 21. axb6 {[%clk 0:00:00]}  axb6 {[%clk 0:00:00]} 22. Ba6 {[%clk 0:00:00]}  Be7 {[%clk 0:00:00]} 23. Ng3 {[%clk 0:00:00]}  Bxa6 {[%clk 0:00:00]} 24. Qxa6 {[%clk 0:00:00]}  Qb7 {[%clk 0:00:00]} 25. Qb5 {[%clk 0:00:00]}  Kc7 {[%clk 0:00:00]} 26. Ke2 {[%clk 0:00:00]}  Ra8 {[%clk 0:00:00]} 27. Rhh1 {[%clk 0:00:00]}  Rxa1 {[%clk 0:00:00]} 28. Rxa1 {[%clk 0:00:00]}  Ra8 {[%clk 0:00:00]} 29. Rxa8 {[%clk 0:00:00]}  Qxa8 {[%clk 0:00:00]} 30. Nc4 {[%clk 0:00:00]}  d5 {[%clk 0:00:00]} 31. Qxd7+ {[%clk 0:00:00]}  Kxd7 {[%clk 0:00:00]} 32. Nxb6+ {[%clk 0:00:00]}  Kc6 {[%clk 0:00:00]} 33. Nxa8 {[%clk 0:00:00]}  Kb7 {[%clk 0:00:00]} 34. Kd3 {[%clk 0:00:00]}  c4+ {[%clk 0:00:00]} 35. Kc2 {[%clk 0:00:00]}  Kxa8 {[%clk 0:00:00]} 36. b3 {[%clk 0:00:00]}  cxb3+ {[%clk 0:00:00]} 37. Kxb3 {[%clk 0:00:00]}  Kb7 {[%clk 0:00:00]} 38. c4 {[%clk 0:00:00]}  dxc4+ {[%clk 0:00:00]} 39. Kxc4 {[%clk 0:00:00]}  Kc6 {[%clk 0:00:00]} 40. e4 {[%clk 0:00:00]}  Bd6 {[%clk 0:00:00]} 41. d5+ {[%clk 0:00:00]}  Kd7 {[%clk 0:00:00]} 42. Ne2 {[%clk 0:00:00]}  Be5 {[%clk 0:00:00]} 43. f3 {[%clk 0:00:00]}  Kd6 {[%clk 0:00:00]} 44. Nc1 {[%clk 0:00:00]}  f5 {[%clk 0:00:00]} 45. Nd3 {[%clk 0:00:00]}  exd5+ {[%clk 0:00:00]} 46. exd5 {[%clk 0:00:00]}  Bf6 {[%clk 0:00:00]} 47. Nb4 {[%clk 0:00:00]}  Ke5 {[%clk 0:00:00]} 48. Nc6+ {[%clk 0:00:00]}  Kf4 {[%clk 0:00:00]} 49. d6 {[%clk 0:00:00]}  Kxf3 {[%clk 0:00:00]} 50. gxf5 {[%clk 0:00:00]}  g4 {[%clk 0:00:00]} 51. Kd5 {[%clk 0:00:00]}  g3 {[%clk 0:00:00]} 52. d7 {[%clk 0:00:00]}  g2 {[%clk 0:00:00]} 53. Ne5+ {[%clk 0:00:00]}  Kg3 {[%clk 0:00:00]} 54. Ng4 {[%clk 0:00:00]}  Kxg4 {[%clk 0:00:00]} 55. Ke6 {[%clk 0:00:00]}  Bd8 {[%clk 0:00:00]} 56. f6 {[%clk 0:00:00]}  g1=Q {[%clk 0:00:00]} 57. f7 {[%clk 0:00:00]}  Qe3+ {[%clk 0:00:00]} 58. Kd5 {[%clk 0:00:00]}  Qe7 {[%clk 0:00:00]} 59. Kc6 {[%clk 0:00:00]}  Qxf7 {[%clk 0:00:00]} 0-1


[Site "https://www.chess.com"]

[Event "Titled Tuesday Blitz August 16 Late 2022"]
[White "Aldokhin, Ivan"]
[Black "Kobo, Ori"]
[WhiteFideId "24115720"]
[BlackFideId "2812320"]
[WhiteElo "2246"]
[BlackElo "2420"]
[Result "1-0"]
[Round "03"]
[TimeControl "180+1"]
[Date "2022.08.16"]
[WhiteClock "0:00:06"]
[BlackClock "0:00:01"]

1. e4 {[%clk 0:03:00]}  g6 {[%clk 0:03:00]} 2. d4 {[%clk 0:03:00]}  Bg7 {[%clk 0:03:00]} 3. Nc3 {[%clk 0:03:01]}  d6 {[%clk 0:03:01]} 4. Bg5 {[%clk 0:02:58]}  a6 {[%clk 0:03:00]} 5. Qd2 {[%clk 0:02:56]}  b5 {[%clk 0:02:59]} 6. Nf3 {[%clk 0:02:56]}  Bb7 {[%clk 0:02:59]} 7. Bd3 {[%clk 0:02:56]}  Nd7 {[%clk 0:02:58]} 8. O-O-O {[%clk 0:02:43]}  c5 {[%clk 0:02:54]} 9. Rhe1 {[%clk 0:02:03]}  cxd4 {[%clk 0:02:48]} 10. Ne2 {[%clk 0:01:55]}  Qb6 {[%clk 0:02:42]} 11. Kb1 {[%clk 0:01:48]}  h6 {[%clk 0:02:30]} 12. Bh4 {[%clk 0:01:47]}  Rc8 {[%clk 0:02:11]} 13. g4 {[%clk 0:01:26]}  Qc5 {[%clk 0:02:02]} 14. Nc1 {[%clk 0:01:21]}  Ne5 {[%clk 0:01:52]} 15. Nxe5 {[%clk 0:00:45]}  dxe5 {[%clk 0:01:53]} 16. Nb3 {[%clk 0:00:42]}  Qd6 {[%clk 0:01:51]} 17. Bg3 {[%clk 0:00:40]}  Nf6 {[%clk 0:01:33]} 18. h3 {[%clk 0:00:40]}  g5 {[%clk 0:01:25]} 19. f3 {[%clk 0:00:38]}  Nd7 {[%clk 0:01:23]} 20. h4 {[%clk 0:00:38]}  Bf6 {[%clk 0:01:17]} 21. Qh2 {[%clk 0:00:25]}  Qb6 {[%clk 0:01:02]} 22. Nc1 {[%clk 0:00:20]}  e6 {[%clk 0:00:57]} 23. Ne2 {[%clk 0:00:19]}  Ke7 {[%clk 0:00:50]} 24. Bf2 {[%clk 0:00:20]}  Qc7 {[%clk 0:00:39]} 25. Ng3 {[%clk 0:00:19]}  gxh4 {[%clk 0:00:35]} 26. Nh5 {[%clk 0:00:19]}  Bg5 {[%clk 0:00:35]} 27. Bxh4 {[%clk 0:00:18]}  f6 {[%clk 0:00:34]} 28. Bxg5 {[%clk 0:00:15]}  hxg5 {[%clk 0:00:33]} 29. Qd2 {[%clk 0:00:16]}  Nc5 {[%clk 0:00:27]} 30. Rh1 {[%clk 0:00:14]}  Qd6 {[%clk 0:00:23]} 31. Rh2 {[%clk 0:00:14]}  Na4 {[%clk 0:00:23]} 32. Rdh1 {[%clk 0:00:12]}  b4 {[%clk 0:00:13]} 33. Nxf6 {[%clk 0:00:11]}  Rxh2 {[%clk 0:00:12]} 34. Rxh2 {[%clk 0:00:10]}  Kd8 {[%clk 0:00:04]} 35. Rh7 {[%clk 0:00:06]}  Nc3+ {[%clk 0:00:03]} 36. Ka1 {[%clk 0:00:06]}  Bc6 {[%clk 0:00:02]} 37. Qxg5 {[%clk 0:00:06]}  Qf8 {[%clk 0:00:01]} 38. Nd5+ {[%clk 0:00:06]}  Ke8 {[%clk 0:00:01]} 39. Re7+ {[%clk 0:00:06]} 1-0


[Site "https://www.chess.com"]

[Event "Titled Tuesday Blitz August 16 Late 2022"]
[White "Amburgy, Ryan"]
[Black "Ozalp, Burak"]
[WhiteFideId "30924820"]
[BlackFideId "6314210"]
[WhiteElo "2152"]
[BlackElo "2206"]
[Result "1-0"]
[Round "03"]
[TimeControl "180+1"]
[Date "2022.08.18"]
[WhiteClock "0:00:00"]
[BlackClock "0:00:00"]

1. d4 {[%clk 0:00:00]}  Nf6 {[%clk 0:00:00]} 2. Nc3 {[%clk 0:00:00]}  d5 {[%clk 0:00:00]} 3. Bf4 {[%clk 0:00:00]}  c6 {[%clk 0:00:00]} 4. e3 {[%clk 0:00:00]}  g6 {[%clk 0:00:00]} 5. h4 {[%clk 0:00:00]}  h5 {[%clk 0:00:00]} 6. Nf3 {[%clk 0:00:00]}  Bg7 {[%clk 0:00:00]} 7. Ne5 {[%clk 0:00:00]}  Nbd7 {[%clk 0:00:00]} 8. Bd3 {[%clk 0:00:00]}  e6 {[%clk 0:00:00]} 9. f3 {[%clk 0:00:00]}  c5 {[%clk 0:00:00]} 10. dxc5 {[%clk 0:00:00]}  Nxc5 {[%clk 0:00:00]} 11. Bb5+ {[%clk 0:00:00]}  Bd7 {[%clk 0:00:00]} 12. Qd4 {[%clk 0:00:00]}  Qb6 {[%clk 0:00:00]} 13. Nxd7 {[%clk 0:00:00]}  Ncxd7 {[%clk 0:00:00]} 14. Qxb6 {[%clk 0:00:00]}  axb6 {[%clk 0:00:00]} 15. O-O-O {[%clk 0:00:00]}  O-O {[%clk 0:00:00]} 16. a3 {[%clk 0:00:00]}  Rac8 {[%clk 0:00:00]} 17. e4 {[%clk 0:00:00]}  e5 {[%clk 0:00:00]} 18. Bg5 {[%clk 0:00:00]}  d4 {[%clk 0:00:00]} 19. Nd5 {[%clk 0:00:00]}  Rc5 {[%clk 0:00:00]} 20. Bxd7 {[%clk 0:00:00]}  Nxd7 {[%clk 0:00:00]} 21. Be7 {[%clk 0:00:00]}  Bh6+ {[%clk 0:00:00]} 22. Kb1 {[%clk 0:00:00]}  Rfc8 {[%clk 0:00:00]} 23. Bxc5 {[%clk 0:00:00]}  bxc5 {[%clk 0:00:00]} 24. Ne7+ {[%clk 0:00:00]} 1-0


[Site "https://www.chess.com"]

[Event "Titled Tuesday Blitz August 16 Late 2022"]
[White "Averjanov, Alexey"]
[Black "Prieto Aranguren, Alain"]
[WhiteFideId "14109867"]
[BlackFideId "2268906"]
[WhiteElo "2399"]
[BlackElo "2224"]
[Result "1-0"]
[Round "03"]
[TimeControl "180+1"]
[Date "2022.08.18"]
[WhiteClock "0:00:00"]
[BlackClock "0:00:00"]

1. d4 {[%clk 0:00:00]}  Nf6 {[%clk 0:00:00]} 2. c4 {[%clk 0:00:00]}  g6 {[%clk 0:00:00]} 3. Nc3 {[%clk 0:00:00]}  Bg7 {[%clk 0:00:00]} 4. e4 {[%clk 0:00:00]}  d6 {[%clk 0:00:00]} 5. Be2 {[%clk 0:00:00]}  O-O {[%clk 0:00:00]} 6. Nf3 {[%clk 0:00:00]}  e5 {[%clk 0:00:00]} 7. O-O {[%clk 0:00:00]}  Nc6 {[%clk 0:00:00]} 8. d5 {[%clk 0:00:00]}  Ne7 {[%clk 0:00:00]} 9. Ne1 {[%clk 0:00:00]}  Nd7 {[%clk 0:00:00]} 10. Be3 {[%clk 0:00:00]}  f5 {[%clk 0:00:00]} 11. f3 {[%clk 0:00:00]}  f4 {[%clk 0:00:00]} 12. Bf2 {[%clk 0:00:00]}  g5 {[%clk 0:00:00]} 13. a4 {[%clk 0:00:00]}  Rf6 {[%clk 0:00:00]} 14. a5 {[%clk 0:00:00]}  Rh6 {[%clk 0:00:00]} 15. g4 {[%clk 0:00:00]}  fxg3 {[%clk 0:00:00]} 16. hxg3 {[%clk 0:00:00]}  Nf6 {[%clk 0:00:00]} 17. g4 {[%clk 0:00:00]}  Ng6 {[%clk 0:00:00]} 18. Nd3 {[%clk 0:00:00]}  Nf4 {[%clk 0:00:00]} 19. Nxf4 {[%clk 0:00:00]}  exf4 {[%clk 0:00:00]} 20. Kg2 {[%clk 0:00:00]}  Rg6 {[%clk 0:00:00]} 21. Rh1 {[%clk 0:00:00]}  Nd7 {[%clk 0:00:00]} 22. Nb5 {[%clk 0:00:00]}  Ne5 {[%clk 0:00:00]} 23. Nd4 {[%clk 0:00:00]}  c5 {[%clk 0:00:00]} 24. dxc6 {[%clk 0:00:00]}  bxc6 {[%clk 0:00:00]} 25. Nf5 {[%clk 0:00:00]}  Bxf5 {[%clk 0:00:00]} 26. gxf5 {[%clk 0:00:00]}  Rf6 {[%clk 0:00:00]} 27. Rh5 {[%clk 0:00:00]}  h6 {[%clk 0:00:00]} 28. Bd4 {[%clk 0:00:00]}  Rf7 {[%clk 0:00:00]} 29. Bc3 {[%clk 0:00:00]}  Rb8 {[%clk 0:00:00]} 30. Qd2 {[%clk 0:00:00]}  Rfb7 {[%clk 0:00:00]} 31. Rd1 {[%clk 0:00:00]}  Rd7 {[%clk 0:00:00]} 32. b4 {[%clk 0:00:00]}  Qe8 {[%clk 0:00:00]} 33. Rdh1 {[%clk 0:00:00]}  Qf7 {[%clk 0:00:00]} 34. Qd4 {[%clk 0:00:00]}  Qf8 {[%clk 0:00:00]} 35. Qd1 {[%clk 0:00:00]}  Qf7 {[%clk 0:00:00]} 36. Qf1 {[%clk 0:00:00]}  a6 {[%clk 0:00:00]} 37. R5h3 {[%clk 0:00:00]}  Nxc4 {[%clk 0:00:00]} 38. Bxc4 {[%clk 0:00:00]}  d5 {[%clk 0:00:00]} 39. Bxg7 {[%clk 0:00:00]}  dxc4 {[%clk 0:00:00]} 40. Be5 {[%clk 0:00:00]}  Rd2+ {[%clk 0:00:00]} 41. Kg1 {[%clk 0:00:00]}  Qe7 {[%clk 0:00:00]} 42. Bxb8 {[%clk 0:00:00]}  Qxb4 {[%clk 0:00:00]} 43. Ba7 {[%clk 0:00:00]}  c5 {[%clk 0:00:00]} 44. R1h2 {[%clk 0:00:00]}  c3 {[%clk 0:00:00]} 45. Rxd2 {[%clk 0:00:00]}  cxd2 {[%clk 0:00:00]} 46. Qd1 {[%clk 0:00:00]}  Qd4+ {[%clk 0:00:00]} 47. Kg2 {[%clk 0:00:00]}  Qe3 {[%clk 0:00:00]} 48. Rh1 {[%clk 0:00:00]}  g4 {[%clk 0:00:00]} 49. Bxc5 {[%clk 0:00:00]} 1-0


[Site "https://www.chess.com"]

[Event "Titled Tuesday Blitz August 16 Late 2022"]
[White "Babazada, Khazar"]
[Black "Claverie, Christophe"]
[WhiteFideId "13413554"]
[BlackFideId "605514"]
[WhiteElo "2409"]
[BlackElo "2300"]
[Result "1-0"]
[Round "03"]
[TimeControl "180+1"]
[Date "2022.08.16"]
[WhiteClock "0:00:05"]
[BlackClock "0:00:02"]

1. Nf3 {[%clk 0:03:00]}  Nf6 {[%clk 0:02:56]} 2. g3 {[%clk 0:03:01]}  g6 {[%clk 0:02:57]} 3. Bg2 {[%clk 0:03:00]}  Bg7 {[%clk 0:02:58]} 4. O-O {[%clk 0:03:01]}  O-O {[%clk 0:02:58]} 5. d3 {[%clk 0:03:02]}  d5 {[%clk 0:02:57]} 6. Nc3 {[%clk 0:03:03]}  c5 {[%clk 0:02:56]} 7. e4 {[%clk 0:03:03]}  d4 {[%clk 0:02:56]} 8. Ne2 {[%clk 0:03:04]}  Nc6 {[%clk 0:02:56]} 9. a4 {[%clk 0:03:04]}  e5 {[%clk 0:02:56]} 10. h3 {[%clk 0:03:05]}  Ne8 {[%clk 0:02:54]} 11. Nd2 {[%clk 0:03:05]}  Nd6 {[%clk 0:02:55]} 12. f4 {[%clk 0:03:06]}  f5 {[%clk 0:02:55]} 13. fxe5 {[%clk 0:03:05]}  Nxe5 {[%clk 0:02:54]} 14. Nf4 {[%clk 0:03:05]}  fxe4 {[%clk 0:02:51]} 15. Nxe4 {[%clk 0:03:06]}  Nxe4 {[%clk 0:02:26]} 16. Bxe4 {[%clk 0:03:07]}  g5 {[%clk 0:02:27]} 17. Qh5 {[%clk 0:03:04]}  h6 {[%clk 0:02:23]} 18. Bd2 {[%clk 0:01:43]}  gxf4 {[%clk 0:02:14]} 19. Rae1 {[%clk 0:01:43]}  Qg5 {[%clk 0:02:04]} 20. Qxg5 {[%clk 0:01:43]}  hxg5 {[%clk 0:02:05]} 21. gxf4 {[%clk 0:01:43]}  gxf4 {[%clk 0:02:05]} 22. Bxf4 {[%clk 0:01:36]}  Bxh3 {[%clk 0:01:51]} 23. Bd5+ {[%clk 0:01:36]}  Kh7 {[%clk 0:01:37]} 24. Rf2 {[%clk 0:01:32]}  Rxf4 {[%clk 0:01:11]} 25. Rxf4 {[%clk 0:01:31]}  Ng6 {[%clk 0:01:12]} 26. Rf2 {[%clk 0:01:22]}  Bd7 {[%clk 0:00:44]} 27. Rf7 {[%clk 0:00:57]}  Bc6 {[%clk 0:00:38]} 28. Bxc6 {[%clk 0:00:51]}  bxc6 {[%clk 0:00:39]} 29. Rc7 {[%clk 0:00:52]}  Rf8 {[%clk 0:00:31]} 30. Rxc6 {[%clk 0:00:48]}  Rf5 {[%clk 0:00:32]} 31. Rc7 {[%clk 0:00:44]}  Kh6 {[%clk 0:00:31]} 32. Rxa7 {[%clk 0:00:42]}  Be5 {[%clk 0:00:31]} 33. a5 {[%clk 0:00:42]}  Bf4 {[%clk 0:00:30]} 34. a6 {[%clk 0:00:41]}  Be3+ {[%clk 0:00:31]} 35. Kh1 {[%clk 0:00:38]}  Nf4 {[%clk 0:00:27]} 36. Rxe3 {[%clk 0:00:17]}  dxe3 {[%clk 0:00:26]} 37. Re7 {[%clk 0:00:17]}  e2 {[%clk 0:00:21]} 38. a7 {[%clk 0:00:17]}  Rf8 {[%clk 0:00:21]} 39. Kg1 {[%clk 0:00:18]}  Ra8 {[%clk 0:00:14]} 40. Kf2 {[%clk 0:00:17]}  Kg5 {[%clk 0:00:14]} 41. Ke1 {[%clk 0:00:15]}  Kf6 {[%clk 0:00:14]} 42. Re4 {[%clk 0:00:15]}  Kf5 {[%clk 0:00:14]} 43. Re7 {[%clk 0:00:15]}  Kf6 {[%clk 0:00:15]} 44. Rb7 {[%clk 0:00:15]}  Ke5 {[%clk 0:00:14]} 45. c3 {[%clk 0:00:13]}  Kf5 {[%clk 0:00:14]} 46. Re7 {[%clk 0:00:12]}  Kf6 {[%clk 0:00:14]} 47. Rb7 {[%clk 0:00:12]}  Kf5 {[%clk 0:00:14]} 48. b4 {[%clk 0:00:12]}  cxb4 {[%clk 0:00:13]} 49. cxb4 {[%clk 0:00:12]}  Kg4 {[%clk 0:00:14]} 50. b5 {[%clk 0:00:08]}  Kf3 {[%clk 0:00:12]} 51. Rf7 {[%clk 0:00:09]}  Ke3 {[%clk 0:00:04]} 52. Re7+ {[%clk 0:00:09]}  Kxd3 {[%clk 0:00:04]} 53. b6 {[%clk 0:00:09]}  Rh8 {[%clk 0:00:02]} 54. Kf2 {[%clk 0:00:06]}  Rh2+ {[%clk 0:00:02]} 55. Kg3 {[%clk 0:00:06]}  Rh1 {[%clk 0:00:02]} 56. a8=Q {[%clk 0:00:05]} 1-0


[Site "https://www.chess.com"]

[Event "Titled Tuesday Blitz August 16 Late 2022"]
[White "Badmatsyrenov, Oleg"]
[Black "Yanchenko, Roman"]
[WhiteFideId "24115762"]
[BlackFideId "4137329"]
[WhiteElo "2403"]
[BlackElo "2514"]
[Result "1-0"]
[Round "03"]
[TimeControl "180+1"]
[Date "2022.08.16"]
[WhiteClock "0:00:11"]
[BlackClock "0:00:16"]

1. e4 {[%clk 0:02:55]}  e6 {[%clk 0:03:00]} 2. d4 {[%clk 0:02:52]}  d5 {[%clk 0:03:00]} 3. Nc3 {[%clk 0:02:52]}  Bb4 {[%clk 0:02:59]} 4. a3 {[%clk 0:02:49]}  Bxc3+ {[%clk 0:02:59]} 5. bxc3 {[%clk 0:02:49]}  Ne7 {[%clk 0:02:57]} 6. Bd3 {[%clk 0:02:44]}  b6 {[%clk 0:02:56]} 7. Nf3 {[%clk 0:02:40]}  Ba6 {[%clk 0:02:56]} 8. O-O {[%clk 0:02:35]}  Bxd3 {[%clk 0:02:50]} 9. cxd3 {[%clk 0:02:34]}  h6 {[%clk 0:02:49]} 10. a4 {[%clk 0:02:31]}  c5 {[%clk 0:02:48]} 11. Ba3 {[%clk 0:02:26]}  cxd4 {[%clk 0:02:43]} 12. cxd4 {[%clk 0:02:24]}  O-O {[%clk 0:02:35]} 13. Rc1 {[%clk 0:02:20]}  Nbc6 {[%clk 0:02:31]} 14. Qd2 {[%clk 0:02:09]}  Re8 {[%clk 0:02:26]} 15. Rc2 {[%clk 0:02:07]}  Rc8 {[%clk 0:02:11]} 16. Rfc1 {[%clk 0:02:04]}  Qd7 {[%clk 0:02:10]} 17. Qf4 {[%clk 0:01:46]}  dxe4 {[%clk 0:01:58]} 18. dxe4 {[%clk 0:01:44]}  Ng6 {[%clk 0:01:18]} 19. Qd6 {[%clk 0:01:13]}  Qxd6 {[%clk 0:01:06]} 20. Bxd6 {[%clk 0:01:14]}  Nce7 {[%clk 0:01:06]} 21. g3 {[%clk 0:00:53]}  f6 {[%clk 0:01:04]} 22. Rc7 {[%clk 0:00:50]}  Rxc7 {[%clk 0:01:03]} 23. Rxc7 {[%clk 0:00:49]}  Nc8 {[%clk 0:01:01]} 24. Bb4 {[%clk 0:00:42]}  Rd8 {[%clk 0:00:56]} 25. Kf1 {[%clk 0:00:36]}  h5 {[%clk 0:00:52]} 26. h4 {[%clk 0:00:31]}  a5 {[%clk 0:00:44]} 27. Ba3 {[%clk 0:00:29]}  Nd6 {[%clk 0:00:44]} 28. Bxd6 {[%clk 0:00:26]}  Rxd6 {[%clk 0:00:45]} 29. Ke2 {[%clk 0:00:25]}  Nf8 {[%clk 0:00:36]} 30. Ke3 {[%clk 0:00:25]}  b5 {[%clk 0:00:18]} 31. axb5 {[%clk 0:00:23]}  Rb6 {[%clk 0:00:18]} 32. Rc5 {[%clk 0:00:20]}  Nd7 {[%clk 0:00:18]} 33. Rc6 {[%clk 0:00:20]}  Rxb5 {[%clk 0:00:19]} 34. Rxe6 {[%clk 0:00:18]}  Nb6 {[%clk 0:00:19]} 35. Re7 {[%clk 0:00:16]}  a4 {[%clk 0:00:19]} 36. Ra7 {[%clk 0:00:16]}  Rb3+ {[%clk 0:00:19]} 37. Ke2 {[%clk 0:00:15]}  Kh7 {[%clk 0:00:19]} 38. Nd2 {[%clk 0:00:14]}  Rb2 {[%clk 0:00:19]} 39. Kd3 {[%clk 0:00:15]}  Kg6 {[%clk 0:00:19]} 40. f4 {[%clk 0:00:14]}  Ra2 {[%clk 0:00:18]} 41. f5+ {[%clk 0:00:14]}  Kh7 {[%clk 0:00:17]} 42. d5 {[%clk 0:00:12]}  Ra3+ {[%clk 0:00:17]} 43. Kd4 {[%clk 0:00:12]}  Rxg3 {[%clk 0:00:18]} 44. d6 {[%clk 0:00:12]}  Rh3 {[%clk 0:00:16]} 45. Nc4 {[%clk 0:00:11]}  Nxc4 {[%clk 0:00:15]} 46. Kxc4 {[%clk 0:00:11]}  Rh1 {[%clk 0:00:14]} 47. Rxa4 {[%clk 0:00:10]}  Rd1 {[%clk 0:00:14]} 48. Kc5 {[%clk 0:00:11]}  Kg8 {[%clk 0:00:14]} 49. Rd4 {[%clk 0:00:11]}  Rxd4 {[%clk 0:00:13]} 50. Kxd4 {[%clk 0:00:11]}  Kf7 {[%clk 0:00:14]} 51. Kd5 {[%clk 0:00:11]}  Ke8 {[%clk 0:00:15]} 52. Ke6 {[%clk 0:00:11]}  Kd8 {[%clk 0:00:16]} 1-0


[Site "https://www.chess.com"]

[Event "Titled Tuesday Blitz August 16 Late 2022"]
[White "Bartholomew, John"]
[Black "Vasquez Schroeder, Rodrigo"]
[WhiteFideId "2019353"]
[BlackFideId "3400042"]
[WhiteElo "2685"]
[BlackElo "2567"]
[Result "0-1"]
[Round "03"]
[TimeControl "180+1"]
[Date "2022.08.16"]
[WhiteClock "0:00:14"]
[BlackClock "0:01:12"]

1. d4 {[%clk 0:03:00]}  Nf6 {[%clk 0:02:57]} 2. c4 {[%clk 0:02:58]}  e6 {[%clk 0:02:57]} 3. Nf3 {[%clk 0:02:57]}  Bb4+ {[%clk 0:02:57]} 4. Bd2 {[%clk 0:02:57]}  c5 {[%clk 0:02:57]} 5. Bxb4 {[%clk 0:02:54]}  cxb4 {[%clk 0:02:57]} 6. g3 {[%clk 0:02:54]}  b6 {[%clk 0:02:57]} 7. Bg2 {[%clk 0:02:54]}  Bb7 {[%clk 0:02:58]} 8. O-O {[%clk 0:02:53]}  a5 {[%clk 0:02:58]} 9. a3 {[%clk 0:02:53]}  Na6 {[%clk 0:02:58]} 10. axb4 {[%clk 0:02:47]}  Nxb4 {[%clk 0:02:58]} 11. Na3 {[%clk 0:02:47]}  O-O {[%clk 0:02:56]} 12. Nc2 {[%clk 0:02:41]}  Na6 {[%clk 0:02:42]} 13. b3 {[%clk 0:02:34]}  d5 {[%clk 0:02:40]} 14. Ne5 {[%clk 0:02:28]}  Qe7 {[%clk 0:02:40]} 15. Qd3 {[%clk 0:02:21]}  Rfd8 {[%clk 0:02:35]} 16. Rfd1 {[%clk 0:02:15]}  Rac8 {[%clk 0:02:35]} 17. e3 {[%clk 0:01:37]}  dxc4 {[%clk 0:02:06]} 18. bxc4 {[%clk 0:01:38]}  Bxg2 {[%clk 0:02:06]} 19. Kxg2 {[%clk 0:01:39]}  Qb7+ {[%clk 0:02:04]} 20. Kg1 {[%clk 0:01:35]}  Nc5 {[%clk 0:02:00]} 21. Qe2 {[%clk 0:01:24]}  Nce4 {[%clk 0:02:00]} 22. Qf3 {[%clk 0:01:17]}  Qc7 {[%clk 0:01:58]} 23. Na3 {[%clk 0:01:14]}  Nd6 {[%clk 0:01:55]} 24. Rdc1 {[%clk 0:01:10]}  h6 {[%clk 0:01:52]} 25. Rab1 {[%clk 0:01:02]}  Nfe4 {[%clk 0:01:48]} 26. Rc2 {[%clk 0:00:44]}  f6 {[%clk 0:01:46]} 27. Nd3 {[%clk 0:00:41]}  Rb8 {[%clk 0:01:35]} 28. Rbc1 {[%clk 0:00:38]}  f5 {[%clk 0:01:32]} 29. c5 {[%clk 0:00:37]}  bxc5 {[%clk 0:01:32]} 30. Nxc5 {[%clk 0:00:38]}  Qe7 {[%clk 0:01:28]} 31. Nc4 {[%clk 0:00:29]}  Nxc4 {[%clk 0:01:25]} 32. Rxc4 {[%clk 0:00:28]}  Nd2 {[%clk 0:01:24]} 33. Qc6 {[%clk 0:00:27]}  Nxc4 {[%clk 0:01:23]} 34. Rxc4 {[%clk 0:00:28]}  Rdc8 {[%clk 0:01:23]} 35. Qa4 {[%clk 0:00:27]}  Qc7 {[%clk 0:01:19]} 36. h4 {[%clk 0:00:26]}  Rb1+ {[%clk 0:01:18]} 37. Kh2 {[%clk 0:00:22]}  Qc6 {[%clk 0:01:17]} 38. Qxc6 {[%clk 0:00:20]}  Rxc6 {[%clk 0:01:18]} 39. Ra4 {[%clk 0:00:19]}  Rb5 {[%clk 0:01:18]} 40. Kg2 {[%clk 0:00:16]}  e5 {[%clk 0:01:16]} 41. Nd3 {[%clk 0:00:16]}  exd4 {[%clk 0:01:16]} 42. exd4 {[%clk 0:00:15]}  Rc2 {[%clk 0:01:15]} 43. Kf3 {[%clk 0:00:14]}  Rb3 {[%clk 0:01:12]} 0-1


[Site "https://www.chess.com"]

[Event "Titled Tuesday Blitz August 16 Late 2022"]
[White "Bayo Milagro, Alvaro"]
[Black "Chernomordik, Pavel"]
[WhiteFideId "22275240"]
[BlackFideId "2804530"]
[WhiteElo "2285"]
[BlackElo "2200"]
[Result "0-1"]
[Round "03"]
[TimeControl "180+1"]
[Date "2022.08.18"]
[WhiteClock "0:00:00"]
[BlackClock "0:00:00"]

1. c4 {[%clk 0:00:00]}  g6 {[%clk 0:00:00]} 2. g3 {[%clk 0:00:00]}  Bg7 {[%clk 0:00:00]} 3. Bg2 {[%clk 0:00:00]}  e5 {[%clk 0:00:00]} 4. Nc3 {[%clk 0:00:00]}  Nc6 {[%clk 0:00:00]} 5. d3 {[%clk 0:00:00]}  d6 {[%clk 0:00:00]} 6. Nf3 {[%clk 0:00:00]}  h6 {[%clk 0:00:00]} 7. O-O {[%clk 0:00:00]}  Be6 {[%clk 0:00:00]} 8. Rb1 {[%clk 0:00:00]}  Qd7 {[%clk 0:00:00]} 9. b4 {[%clk 0:00:00]}  Bh3 {[%clk 0:00:00]} 10. b5 {[%clk 0:00:00]}  Nd8 {[%clk 0:00:00]} 11. a4 {[%clk 0:00:00]}  Bxg2 {[%clk 0:00:00]} 12. Kxg2 {[%clk 0:00:00]}  Ne6 {[%clk 0:00:00]} 13. Ba3 {[%clk 0:00:00]}  Ne7 {[%clk 0:00:00]} 14. Nd5 {[%clk 0:00:00]}  O-O {[%clk 0:00:00]} 15. Qd2 {[%clk 0:00:00]}  f5 {[%clk 0:00:00]} 16. Rbc1 {[%clk 0:00:00]}  Kh7 {[%clk 0:00:00]} 17. Qc2 {[%clk 0:00:00]}  c6 {[%clk 0:00:00]} 18. Nxe7 {[%clk 0:00:00]}  Qxe7 {[%clk 0:00:00]} 19. bxc6 {[%clk 0:00:00]}  bxc6 {[%clk 0:00:00]} 20. Rb1 {[%clk 0:00:00]}  e4 {[%clk 0:00:00]} 21. dxe4 {[%clk 0:00:00]}  fxe4 {[%clk 0:00:00]} 22. Qxe4 {[%clk 0:00:00]}  Nf4+ {[%clk 0:00:00]} 23. Qxf4 {[%clk 0:00:00]}  Rxf4 {[%clk 0:00:00]} 24. gxf4 {[%clk 0:00:00]}  Qxe2 {[%clk 0:00:00]} 25. Bxd6 {[%clk 0:00:00]}  Qe6 {[%clk 0:00:00]} 0-1


[Site "https://www.chess.com"]